bitfinex-derivatives/quotes_SOLF0:USTF0_20250714
["timestamp","ask_amount","ask_price","bid_price","bid_amount"]
[1752514573934,179.52,163.86,163.63,527.0]
[1752514573935,7.66282145,163.86,163.75,7.66282145]
[1752514574140,3.44,163.85,163.77,7.66282145]
[1752514574345,3.44,163.85,163.78,3.63]
[1752514574530,3.44,163.85,163.84,6.1032]
[1752514574730,7.66282145,163.87,163.82,3.63]
[1752514574935,3.44,163.84,163.82,3.63]
[1752514575243,3.44,163.84,163.83,6.1036]
[1752514575436,3.44,163.86,163.77,3.63]
[1752514575640,3.44,163.86,163.7,7.66282145]
[1752514575641,3.44,163.86,163.79,3.63]
[1752514576143,3.44,163.86,163.8,7.66282145]
[1752514576337,3.44,163.89,163.88,6.1016]
[1752514576738,3.44,163.91,163.88,3.63]
[1752514576940,3.44,163.91,163.9,6.101]
[1752514577345,7.66282145,163.96,163.92,6.1]
[1752514577346,3.44,163.93,163.92,6.1]
[1752514577541,3.44,163.97,163.89,3.63]
[1752514577936,3.44,163.97,163.94,6.0992]
[1752514578240,527.24,163.98,163.9,7.66282145]
[1752514578545,3.44,163.97,163.91,3.63]
[1752514579042,527.24,163.98,163.91,3.63]
[1752514579246,3.44,163.97,163.91,3.63]
[1752514579742,3.44,163.97,163.9,7.66282145]
[1752514579743,3.44,163.97,163.96,6.0986]
[1752514580339,3.44,164.0,163.93,3.63]
[1752514582239,3.44,164.0,163.97,6.0982]
[1752514582440,7.66282145,164.0,163.93,3.63]
[1752514582634,3.44,163.97,163.89,3.63]
[1752514582842,3.44,163.97,163.96,6.0987]
[1752514583648,3.44,163.97,163.95,6.099]
[1752514583951,3.44,163.97,163.91,3.63]
[1752514584241,3.44,163.97,163.94,6.0991]
[1752514584446,3.44,163.97,163.89,3.63]
[1752514585348,3.44,163.97,163.96,6.0987]
[1752514586447,180.22,164.02,163.95,6.099]
[1752514586448,3.44,163.98,163.95,6.099]
[1752514586646,3.44,163.98,163.91,3.63]
[1752514587349,3.44,163.98,163.96,6.0987]
[1752514587544,3.44,164.03,163.91,3.63]
[1752514587747,6.0971,164.01,163.97,6.0983]
[1752514587944,3.44,164.0,163.97,6.0983]
[1752514588151,7.66282145,164.0,163.92,3.63]
[1752514588350,3.44,163.99,163.96,6.0986]
[1752514588854,3.44,163.99,163.92,3.63]
[1752514589350,3.44,163.99,163.97,6.0981]
[1752514589948,3.44,163.99,163.93,3.63]
[1752514590745,3.44,163.99,163.98,6.0978]
[1752514590945,3.53,164.03,163.97,7.66282145]
[1752514591155,3.53,164.03,163.99,3.57]
[1752514591446,3.53,164.03,164.01,6.0965]
[1752514592042,3.53,164.03,164.02,6.0965]
[1752514593154,527.22,164.06,164.05,6.0954]
[1752514593340,4.98166384,164.08,164.02,3.57]
[1752514593545,4.98166384,164.1,164.02,3.57]
[1752514593743,4.98166384,164.1,163.94,12.1984]
[1752514593744,4.98166384,164.1,164.03,7.66282145]
[1752514593950,3.53,164.1,164.05,7.66282145]
[1752514594145,3.53,164.1,164.09,6.0939]
[1752514594348,180.12,164.11,164.05,3.57]
[1752514594648,3.53,164.07,164.05,3.57]
[1752514594949,3.53,164.08,164.07,6.0946]
[1752514595155,3.53,164.09,164.07,3.57]
[1752514595348,3.53,164.1,163.93,719.3597]
[1752514595653,3.53,164.08,164.02,3.57]
[1752514596452,6.0945,164.08,164.04,6.0957]
[1752514596647,3.53,164.06,164.03,3.57]
[1752514596848,7.66282145,164.09,163.93,539.2197]
[1752514596849,7.66282145,164.07,163.94,3.57]
[1752514597047,3.53,164.06,163.99,3.57]
[1752514597453,6.096,164.04,164.0,6.0971]
[1752514597753,3.53,164.02,164.0,9.6671]
[1752514597954,6.0954,164.05,164.02,3.57]
[1752514598152,3.53,164.04,164.02,3.57]
[1752514598656,3.53,164.03,164.01,3.57]
[1752514598948,3.53,164.02,163.95,3.57]
[1752514599154,3.53,164.02,163.97,6.0983]
[1752514599356,3.53,164.02,163.97,3.57]
[1752514599542,7.66282145,163.99,163.94,3.57]
[1752514599749,3.53,163.95,163.93,6.0996]
[1752514599948,3.53,163.95,163.93,3.57]
[1752514600749,7.66282145,163.99,163.94,6.0994]
[1752514600951,3.53,163.98,163.94,6.0994]
[1752514602052,7.66282145,163.99,163.94,9.6694]
[1752514602257,3.53,163.96,163.94,9.6694]
[1752514602857,3.53,163.96,163.95,6.0991]
[1752514604359,7.66282145,164.01,163.9,7.66282145]
[1752514604657,3.53,164.0,163.96,3.57]
[1752514605555,3.53,164.0,163.96,6.0985]
[1752514606058,3.53,164.0,163.97,6.0983]
[1752514608060,3.53,164.0,163.98,6.098]
[1752514608259,3.53,163.99,163.98,6.098]
[1752514608965,179.96,164.03,163.93,3.57]
[1752514609154,3.53,164.02,163.93,3.57]
[1752514609363,6.097,164.01,163.93,3.57]
[1752514609554,3.53,164.0,163.93,3.57]
[1752514610256,9.6275,164.0,163.97,6.0981]
[1752514610451,9.6275,164.0,163.93,3.57]
[1752514610452,3.53,163.99,163.93,3.57]
[1752514611260,3.53,163.99,163.97,6.0981]
[1752514611457,9.6276,163.99,163.93,3.57]
[1752514611657,3.53,163.98,163.94,3.57]
[1752514611859,3.53,163.98,163.95,6.099]
[1752514612155,3.53,163.98,163.94,3.57]
[1752514612358,7.66282145,163.99,163.94,3.57]
[1752514612559,3.53,163.96,163.94,3.57]
[1752514613162,3.53,163.96,163.95,6.0991]
[1752514613963,3.53,163.96,163.92,3.57]
[1752514614261,3.53,163.96,163.87,12.2038]
[1752514614262,3.53,163.92,163.85,526.88]
[1752514614464,3.53,163.91,163.89,3.57]
[1752514614660,7.66282145,163.93,163.83,7.66282145]
[1752514614661,6.1004,163.92,163.83,7.66282145]
[1752514614864,3.53,163.9,163.88,3.57]
[1752514615061,3.53,163.9,163.83,7.66282145]
[1752514615365,3.53,163.9,163.89,9.6711]
[1752514615666,3.53,163.9,163.89,6.1011]
[1752514616162,3.53,163.93,163.92,6.1002]
[1752514616365,3.53,163.93,163.89,3.57]
[1752514616560,3.53,163.92,163.9,3.57]
[1752514617065,3.53,163.92,163.91,6.1004]
[1752514617369,3.53,163.92,163.86,3.57]
[1752514617665,9.6304,163.92,163.89,6.1012]
[1752514617966,3.53,163.94,163.86,3.57]
[1752514618166,3.53,163.94,163.89,6.1011]
[1752514618365,3.53,163.92,163.86,3.57]
[1752514618863,6.101,163.9,163.83,7.66282145]
[1752514619063,9.631,163.9,163.87,3.57]
[1752514619365,3.53,163.88,163.86,6.1023]
[1752514619563,3.53,163.87,163.86,6.1023]
[1752514619962,6.1021,163.87,163.82,3.57]
[1752514620159,3.53,163.86,163.82,3.57]
[1752514620357,3.53,163.86,163.83,6.1033]
[1752514620559,3.52,163.85,163.83,3.43]
[1752514621168,3.52,163.85,163.84,6.1032]
[1752514621861,3.52,163.92,163.84,3.43]
[1752514622263,3.52,163.88,163.86,6.1022]
[1752514622465,7.66282145,163.91,163.81,3.43]
[1752514622661,3.52,163.88,163.81,3.43]
[1752514622966,6.1022,163.87,163.81,3.43]
[1752514623167,3.52,163.85,163.81,3.43]
[1752514623568,3.52,163.85,163.79,3.43]
[1752514623771,3.52,163.84,163.82,9.5337]
[1752514623971,3.52,163.84,163.82,3.43]
[1752514624367,3.52,163.84,163.83,6.1036]
[1752514624968,6.1027,163.86,163.84,6.1031]
[1752514625169,3.52,163.87,163.84,3.43]
[1752514625368,3.52,163.87,163.85,3.43]
[1752514625677,3.52,163.86,163.85,3.43]
[1752514625971,3.52,163.86,163.8,7.66282145]
[1752514625972,3.52,163.86,163.84,3.43]
[1752514626170,3.52,163.86,163.85,6.1028]
[1752514626369,3.52,163.86,163.84,3.43]
[1752514626871,3.52,163.85,163.81,3.43]
[1752514627076,3.52,163.87,163.79,3.43]
[1752514627375,3.52,163.87,163.81,9.5342]
[1752514627766,3.52,163.87,163.81,3.43]
[1752514627968,3.52,163.85,163.81,3.43]
[1752514628173,3.52,163.83,163.79,3.43]
[1752514628375,6.1043,163.81,163.79,3.43]
[1752514628678,3.52,163.78,163.76,3.43]
[1752514628873,3.52,163.77,163.76,3.43]
[1752514629378,3.52,163.77,163.75,6.1063]
[1752514629379,9.6259,163.77,163.75,9.5363]
[1752514629579,9.6259,163.77,163.75,9.5365]
[1752514629779,9.6259,163.77,163.75,3.43]
[1752514630172,9.6264,163.76,163.74,3.43]
[1752514630479,7.66282145,163.8,163.71,3.43]
[1752514630480,3.52,163.79,163.71,3.43]
[1752514630675,6.1062,163.76,163.71,3.43]
[1752514630879,3.52,163.77,163.71,3.43]
[1752514631279,9.6258,163.77,163.71,3.43]
[1752514631681,3.52,163.77,163.71,3.43]
[1752514631982,3.52,163.75,163.73,9.5371]
[1752514632179,7.66282145,163.8,163.7,187.44282145]
[1752514632375,3.52,163.74,163.71,3.43]
[1752514632682,3.52,163.74,163.72,3.43]
[1752514632869,6.107,163.74,163.72,3.43]
[1752514633075,3.52,163.73,163.72,3.43]
[1752514633471,3.52,163.77,163.72,3.43]
[1752514634286,3.52,163.77,163.73,6.1071]
[1752514634582,3.52,163.77,163.74,3.43]
[1752514634776,527.36,163.84,163.76,9.5358]
[1752514635082,3.52,163.8,163.76,6.1058]
[1752514635284,3.52,163.8,163.74,3.43]
[1752514635584,7.66282145,163.81,163.7,7.66282145]
[1752514635784,3.52,163.8,163.71,3.43]
[1752514635980,6.1051,163.79,163.76,6.106]
[1752514636177,3.52,163.77,163.76,6.106]
[1752514636778,3.52,163.79,163.78,6.1053]
[1752514636981,7.66282145,163.81,163.76,3.43]
[1752514637182,3.52,163.78,163.76,3.43]
[1752514637683,3.52,163.77,163.76,3.43]
[1752514638182,6.1056,163.78,163.74,3.43]
[1752514638385,3.52,163.74,163.7,7.66282145]
[1752514638777,3.52,163.76,163.73,3.43]
[1752514639079,3.52,163.76,163.74,3.43]
[1752514639283,3.52,163.76,163.74,9.5366]
[1752514639788,3.52,163.75,163.74,9.5366]
[1752514640884,3.52,163.78,163.72,7.66282145]
[1752514641086,3.52,163.77,163.76,3.43]
[1752514641389,3.52,163.77,163.76,9.5362]
[1752514641585,3.52,163.77,163.76,6.1062]
[1752514642083,3.52,163.75,163.72,3.43]
[1752514642288,3.52,163.75,163.73,3.43]
[1752514642482,3.52,163.76,163.74,6.1067]
[1752514642676,6.1059,163.77,163.74,6.1067]
[1752514642877,3.52,163.75,163.74,9.5367]
[1752514643185,3.52,163.77,163.75,3.43]
[1752514643387,3.52,163.76,163.71,7.66282145]
[1752514643591,3.52,163.76,163.74,3.43]
[1752514644084,3.52,163.76,163.75,6.1065]
[1752514644390,3.52,163.8,163.76,3.43]
[1752514644683,3.52,163.79,163.78,6.1053]
[1752514646288,3.52,163.79,163.77,6.1057]
[1752514646489,3.52,163.79,163.75,3.43]
[1752514646689,3.52,163.78,163.75,3.43]
[1752514646888,3.52,163.78,163.75,6.1064]
[1752514647089,7.66004121,163.8,163.71,7.66004121]
[1752514647291,3.52,163.77,163.71,7.66004121]
[1752514647487,3.52,163.77,163.75,3.43]
[1752514647693,3.52,163.77,163.76,9.5359]
[1752514648192,3.52,163.77,163.76,6.1059]
[1752514649093,3.52,163.77,163.74,3.43]
[1752514649295,3.52,163.76,163.75,6.1064]
[1752514649692,3.52,163.76,163.75,9.5364]
[1752514650198,6.1052,163.79,163.76,6.1058]
[1752514650403,3.52,163.77,163.76,6.1058]
[1752514652003,3.52,163.77,163.76,9.4058]
[1752514654508,3.44,163.79,163.74,3.3]
[1752514655099,3.44,163.79,163.68,12.2177]
[1752514655100,3.44,163.79,163.78,9.4054]
[1752514655308,3.44,163.8,163.78,3.3]
[1752514655502,3.44,163.79,163.78,3.3]
[1752514655906,3.44,163.79,163.78,9.4054]
[1752514656400,3.44,163.79,163.78,6.1054]
[1752514657509,3.44,163.79,163.78,9.4054]
[1752514657704,3.44,163.83,163.75,7.66004121]
[1752514657902,3.44,163.83,163.76,3.3]
[1752514658405,3.44,163.83,163.8,6.1045]
[1752514659210,9.5436,163.83,163.79,6.1049]
[1752514659409,9.5436,163.83,163.76,3.3]
[1752514659410,3.44,163.82,163.76,3.3]
[1752514660605,533.4635,163.84,163.8,6.1045]
[1752514660813,3.44,163.81,163.8,6.1045]
[1752514662603,3.44,163.81,163.8,9.4045]
[1752514663113,3.44,163.81,163.8,6.1045]
[1752514665411,3.44,163.81,163.75,3.3]
[1752514665919,3.44,163.81,163.74,6.1069]
[1752514665920,3.44,163.78,163.74,6.1069]
[1752514666213,3.44,163.78,163.72,3.3]
[1752514666407,3.44,163.77,163.72,9.4074]
[1752514666603,3.44,163.77,163.7,7.66004121]
[1752514666604,3.44,163.77,163.73,3.3]
[1752514666810,3.44,163.77,163.7,7.66004121]
[1752514667117,3.44,163.75,163.74,9.4067]
[1752514667315,3.44,163.75,163.74,3.3]
[1752514668618,3.44,163.75,163.74,9.4069]
[1752514669416,3.44,163.76,163.71,3.3]
[1752514669619,3.44,163.76,163.72,3.3]
[1752514669812,3.44,163.76,163.73,3.3]
[1752514670014,3.44,163.76,163.72,3.3]
[1752514670609,9.5464,163.76,163.72,3.3]
[1752514670814,3.44,163.75,163.72,3.3]
[1752514671112,3.44,163.75,163.72,6.1076]
[1752514671314,4.59606261,163.75,163.68,3.3]
[1752514671508,3.44,163.74,163.68,3.3]
[1752514671708,6.1074,163.73,163.69,6.1085]
[1752514672122,3.44,163.7,163.66,3.3]
[1752514672319,3.44,163.7,163.68,6.1089]
[1752514672716,3.44,163.7,163.66,3.3]
[1752514673312,3.44,163.7,163.67,6.1095]
[1752514673721,3.44,163.7,163.66,3.3]
[1752514674320,3.44,163.69,163.67,3.3]
[1752514674520,3.44,163.69,163.68,6.1092]
[1752514675722,4.59606261,163.74,163.68,3.3]
[1752514676118,3.44,163.73,163.7,6.1082]
[1752514676526,3.44,163.73,163.71,6.1078]
[1752514676823,3.44,163.76,163.71,3.3]
[1752514677019,3.44,163.76,163.72,4.59606261]
[1752514677220,3.44,163.76,163.75,6.1065]
[1752514678324,3.44,163.76,163.75,9.4065]
[1752514678521,3.44,163.76,163.7,4.59606261]
[1752514678720,3.44,163.76,163.71,3.3]
[1752514678922,3.44,163.75,163.71,3.3]
[1752514679219,3.44,163.75,163.74,6.1069]
[1752514679423,3.44,163.75,163.71,3.3]
[1752514679620,3.44,163.74,163.69,3.3]
[1752514679924,3.44,163.74,163.72,6.1074]
[1752514680120,3.44,163.74,163.68,4.59606261]
[1752514680318,3.44,163.74,163.7,6.1082]
[1752514680523,3.35,163.72,163.65,3.41]
[1752514681322,3.35,163.72,163.68,6.1089]
[1752514681826,3.35,163.72,163.65,3.41]
[1752514682220,3.35,163.72,163.66,4.59606261]
[1752514682421,3.35,163.72,163.67,3.41]
[1752514682620,3.35,163.74,163.73,6.107]
[1752514684325,3.35,163.73,163.69,3.41]
[1752514685122,3.35,163.73,163.67,3.41]
[1752514685927,3.35,163.75,163.69,3.41]
[1752514686129,3.35,163.75,163.64,17.3598219]
[1752514686130,3.35,163.75,163.74,9.5169]
[1752514686527,3.35,163.75,163.74,6.1069]
[1752514687229,3.35,163.75,163.73,6.1072]
[1752514687529,3.35,163.75,163.71,3.41]
[1752514687725,3.35,163.75,163.74,6.1069]
[1752514692631,3.35,163.75,163.7,3.41]
[1752514692933,3.35,163.75,163.71,3.41]
[1752514693127,3.35,163.75,163.74,6.1069]
[1752514695036,3.35,163.77,163.75,3.41]
[1752514695335,3.35,163.76,163.75,3.41]
[1752514695534,1.06304985,163.79,163.75,6.1062]
[1752514695535,7.16824985,163.79,163.75,6.1062]
[1752514695931,1.06304985,163.79,163.73,3.41]
[1752514696132,3.35,163.78,163.72,4.59606261]
[1752514696328,3.35,163.77,163.71,3.41]
[1752514696735,9.456,163.77,163.73,6.107]
[1752514697028,3.35,163.76,163.71,3.41]
[1752514697224,3.35,163.76,163.72,3.41]
[1752514698032,3.35,163.76,163.73,6.107]
[1752514698237,3.35,163.76,163.71,3.41]
[1752514698535,3.35,163.78,163.72,3.41]
[1752514699130,3.35,163.78,163.75,6.1064]
[1752514700435,6.1055,163.78,163.75,6.1064]
[1752514700634,3.35,163.76,163.75,6.1064]
[1752514702228,3.35,163.76,163.74,6.1067]
[1752514702637,3.35,163.76,163.72,3.41]
[1752514702840,3.35,163.76,163.75,6.1065]
[1752514705640,3.35,163.78,163.77,3.41]
[1752514705838,4.59606261,163.81,163.73,3.41]
[1752514706037,3.35,163.8,163.78,6.1054]
[1752514706337,3.35,163.8,163.76,3.41]
[1752514706532,3.35,163.8,163.72,4.59606261]
[1752514706739,3.35,163.8,163.78,6.1054]
[1752514708233,3.35,163.78,163.77,6.1056]
[1752514711045,3.35,163.78,163.75,3.41]
[1752514711046,3.35,163.78,163.76,6.1061]
[1752514711537,3.35,163.78,163.74,3.52]
[1752514711743,4.59606261,163.79,163.75,3.52]
[1752514711945,4.59606261,163.79,163.68,6.76379081]
[1752514711946,3.44,163.77,163.76,3.52]
[1752514712145,3.44,163.77,163.76,9.6262]
[1752514712349,3.44,163.77,163.76,6.1062]
[1752514714749,3.44,163.77,163.76,9.6262]
[1752514714946,3.44,163.77,163.76,6.1062]
[1752514716242,3.44,163.77,163.76,9.6262]
[1752514717043,3.44,163.8,163.74,3.52]
[1752514717642,3.44,163.8,163.79,6.1051]
[1752514719144,3.44,163.8,163.79,9.6251]
[1752514719839,9.64645892,163.85,163.83,6.1034]
[1752514720043,9.64645892,163.85,163.78,3.52]
[1752514720347,3.44,163.84,163.78,3.52]
[1752514720949,3.44,163.84,163.82,6.1036]
[1752514721144,3.44,163.84,163.8,3.52]
[1752514721456,3.44,163.84,163.82,6.1039]
[1752514722949,3.44,163.84,163.83,6.1036]
[1752514724851,188.42645892,163.88,163.86,6.1024]
[1752514725048,183.37606261,163.88,163.81,4.59606261]
[1752514725254,184.43844717,163.88,163.84,3.52]
[1752514725454,3.44,163.87,163.86,6.1025]
[1752514725755,3.44,163.87,163.86,9.6225]
[1752514726157,3.44,163.87,163.86,6.1025]
[1752514728355,3.44,163.87,163.86,9.6225]
[1752514728658,3.44,163.89,163.88,6.1014]
[1752514728949,3.44,163.89,163.87,6.1019]
[1752514729156,3.44,163.89,163.86,3.52]
[1752514729556,1.06233592,163.9,163.86,3.52]
[1752514729958,3.44,163.89,163.86,3.52]
[1752514730257,3.44,163.88,163.87,6.1021]
[1752514731157,4.50233592,163.9,163.89,6.1013]
[1752514732259,3.44,163.89,163.88,6.1016]
[1752514733157,3.44,163.88,163.87,6.102]
[1752514733361,3.44,163.88,163.84,3.52]
[1752514733554,3.44,163.87,163.84,3.52]
[1752514733759,8.03606261,163.87,163.84,3.52]
[1752514734053,8.03606261,163.87,163.74,6.76379081]
[1752514734054,3.44,163.86,163.78,4.59606261]
[1752514734258,3.44,163.84,163.8,3.52]
[1752514734460,3.44,163.84,163.83,6.1036]
[1752514734661,3.44,163.84,163.83,9.6236]
[1752514734966,183.13606261,163.87,163.76,12.2122]
[1752514734967,3.44,163.85,163.84,9.6232]
[1752514735663,3.44,163.85,163.84,6.1032]
[1752514736361,3.44,163.85,163.84,9.6232]
[1752514736762,3.44,163.85,163.84,6.1032]
[1752514737365,3.44,163.85,163.84,9.6232]
[1752514737761,3.44,163.86,163.85,6.1025]
[1752514739165,3.44,163.86,163.84,9.623]
[1752514739360,3.44,163.85,163.84,9.623]
[1752514740359,3.44,163.84,163.76,4.59606261]
[1752514740558,3.44,163.84,163.77,3.48]
[1752514741067,3.44,163.84,163.81,6.1041]
[1752514741460,3.58,163.82,163.75,3.48]
[1752514741661,3.58,163.8,163.75,3.48]
[1752514741867,3.58,163.78,163.74,3.48]
[1752514742064,3.58,163.76,163.74,3.48]
[1752514742262,3.58,163.75,163.74,6.1067]
[1752514742467,3.58,163.75,163.74,9.5867]
[1752514743761,3.58,163.75,163.68,8.07606261]
[1752514743962,3.58,163.75,163.69,3.48]
[1752514744161,4.59606261,163.77,163.75,6.1064]
[1752514744467,3.58,163.76,163.75,6.1064]
[1752514744870,3.58,163.76,163.72,3.48]
[1752514745170,4.59606261,163.75,163.71,3.48]
[1752514745372,3.58,163.73,163.72,3.48]
[1752514745869,3.58,163.73,163.72,9.5875]
[1752514746270,4.59606261,163.75,163.7,3.48]
[1752514746473,3.58,163.74,163.7,3.48]
[1752514747067,3.58,163.74,163.71,6.1078]
[1752514747266,3.58,163.72,163.71,3.48]
[1752514747766,3.58,163.72,163.71,9.5881]
[1752514747966,3.58,163.74,163.67,3.48]
[1752514748360,3.58,163.74,163.73,6.1071]
[1752514749166,3.58,163.74,163.72,6.1075]
[1752514749363,3.58,163.74,163.7,3.48]
[1752514749570,4.59606261,163.73,163.67,3.48]
[1752514749766,3.58,163.72,163.65,527.36]
[1752514749965,3.58,163.72,163.66,3.48]
[1752514750173,4.59606261,163.71,163.66,3.48]
[1752514750382,3.58,163.68,163.63,3.48]
[1752514750674,3.58,163.68,163.64,3.48]
[1752514751580,3.58,163.66,163.65,6.1101]
[1752514752978,3.58,163.66,163.65,9.5901]
[1752514753282,3.58,163.67,163.66,9.5899]
[1752514753482,3.58,163.67,163.66,6.1099]
[1752514753978,3.58,163.66,163.65,6.1102]
[1752514754881,3.58,163.66,163.58,3.48]
[1752514754882,3.58,163.65,163.58,3.48]
[1752514755085,3.58,163.62,163.58,3.48]
[1752514755292,3.58,163.61,163.58,3.48]
[1752514755587,706.36,163.74,163.58,3.48]
[1752514755588,3.58,163.67,163.58,3.48]
[1752514755889,711.41039631,163.74,163.58,3.48]
[1752514755890,8.17606261,163.64,163.58,3.48]
[1752514756086,3.58,163.63,163.58,3.48]
[1752514756282,3.58,163.62,163.58,3.48]
[1752514756484,4.59606261,163.66,163.58,3.48]
[1752514756686,3.58,163.66,163.6,3.48]
[1752514756886,3.58,163.66,163.65,6.1103]
[1752514757091,4.59606261,163.66,163.59,4.59606261]
[1752514757290,3.58,163.64,163.63,3.48]
[1752514757490,8.17606261,163.64,163.63,6.1111]
[1752514757688,4.59606261,163.64,163.57,527.58]
[1752514757896,3.58,163.63,163.61,6.1117]
[1752514758193,4.59606261,163.62,163.61,6.1117]
[1752514758490,3.58,163.61,163.6,6.1122]
[1752514758684,3.58,163.63,163.6,3.48]
[1752514758884,3.58,163.63,163.62,6.1114]
[1752514759794,8.17606261,163.67,163.6,3.48]
[1752514760286,8.17606261,163.67,163.66,6.1099]
[1752514760287,3.58,163.67,163.66,6.1099]
[1752514761592,3.58,163.67,163.65,6.1102]
[1752514761890,4.59606261,163.66,163.6,3.48]
[1752514762091,4.59606261,163.66,163.64,6.1105]
[1752514762291,4.59606261,163.66,163.63,3.48]
[1752514762592,3.58,163.65,163.63,6.111]
[1752514762793,3.58,163.65,163.62,3.48]
[1752514762992,3.58,163.65,163.57,4.59606261]
[1752514763183,3.58,163.65,163.62,6.1112]
[1752514763494,3.58,163.63,163.56,3.48]
[1752514763688,8.17606261,163.62,163.61,6.1118]
[1752514764191,3.58,163.62,163.61,6.1118]
[1752514765787,4.59606261,163.64,163.63,6.1111]
[1752514765991,4.59606261,163.65,163.58,3.48]
[1752514766191,4.59606261,163.65,163.59,3.48]
[1752514766390,3.58,163.65,163.59,3.48]
[1752514766795,3.58,163.65,163.64,6.1107]
[1752514767794,8.17606261,163.67,163.66,6.1099]
[1752514768296,3.58,163.67,163.66,6.1099]
[1752514769495,3.58,163.67,163.65,6.1102]
[1752514769796,3.58,163.67,163.63,3.48]
[1752514770197,3.58,163.67,163.65,6.1101]
[1752514770399,3.58,163.67,163.54,12.2286]
[1752514770598,3.37,163.63,163.61,6.1116]
[1752514771300,3.37,163.63,163.6,3.58]
[1752514771488,3.37,163.62,163.6,3.58]
[1752514772095,3.37,163.62,163.61,6.1118]
[1752514772300,3.37,163.62,163.61,9.6918]
[1752514772495,3.37,163.66,163.64,3.58]
[1752514772696,4.59606261,163.68,163.62,3.58]
[1752514772697,3.37,163.65,163.62,3.58]
[1752514772999,3.37,163.67,163.62,3.58]
[1752514773199,3.37,163.67,163.65,6.1103]
[1752514773999,3.37,163.67,163.66,6.11]
[1752514774198,3.37,163.67,163.66,9.69]
[1752514774395,3.37,163.69,163.66,3.58]
[1752514774597,4.59606261,163.7,163.68,6.109]
[1752514775195,3.37,163.69,163.68,6.109]
[1752514776692,3.37,163.69,163.66,3.58]
[1752514777001,3.37,163.67,163.61,4.59606261]
[1752514777396,3.37,163.67,163.65,6.1101]
[1752514777597,3.37,163.67,163.61,3.58]
[1752514778099,3.37,163.65,163.61,3.58]
[1752514778303,3.37,163.63,163.57,3.58]
[1752514778598,3.37,163.63,163.61,6.1115]
[1752514778989,3.37,163.62,163.6,6.1119]
[1752514779194,3.37,163.62,163.58,3.58]
[1752514779394,3.37,163.62,163.6,6.1119]
[1752514779595,3.37,163.62,163.59,3.58]
[1752514779899,4.59606261,163.64,163.55,4.59606261]